[Event "Late-Titled-Tuesday-Blitz-March-19-2024"]
[Site "Chess.com"]
[Date "2024.03.19"]
[Round "11"]
[White "LeninGuerra"]
[Black "wild3000"]
[Result "1-0"]
[WhiteElo "2663"]
[BlackElo "2431"]
[TimeControl "180+1"]
[EndTime "16:03:02 PDT"]
[Termination "LeninGuerra won by checkmate"]

1. e4 {[%clk 0:02:56.7]} 1... e6 {[%clk 0:02:36.4]} 2. d4 {[%clk 0:02:53.1]}
2... a6 {[%clk 0:02:35.7]} 3. c4 {[%clk 0:02:52.2]} 3... d6 {[%clk 0:02:35.1]}
4. Nc3 {[%clk 0:02:52.1]} 4... Nf6 {[%clk 0:02:35.1]} 5. Bd3 {[%clk 0:02:43.2]}
5... Be7 {[%clk 0:02:34.8]} 6. Nge2 {[%clk 0:02:43.1]} 6... c5 {[%clk
0:02:33.9]} 7. d5 {[%clk 0:02:42.5]} 7... exd5 {[%clk 0:02:33.8]} 8. exd5 {[%clk
0:02:42.4]} 8... O-O {[%clk 0:02:29.2]} 9. O-O {[%clk 0:02:42]} 9... Bg4 {[%clk
0:02:28.4]} 10. h3 {[%clk 0:02:41.2]} 10... Bh5 {[%clk 0:02:28.5]} 11. Qc2
{[%clk 0:02:40.9]} 11... Nbd7 {[%clk 0:02:24.9]} 12. Ng3 {[%clk 0:02:40.4]}
12... Bg6 {[%clk 0:02:25]} 13. Bxg6 {[%clk 0:02:38.6]} 13... hxg6 {[%clk
0:02:25.9]} 14. f4 {[%clk 0:02:37.8]} 14... b5 {[%clk 0:02:23.5]} 15. b3 {[%clk
0:02:37.5]} 15... Nb6 {[%clk 0:02:21.7]} 16. Qd3 {[%clk 0:02:33]} 16... Qd7
{[%clk 0:02:10.1]} 17. f5 {[%clk 0:02:31.4]} 17... bxc4 {[%clk 0:02:02.9]} 18.
bxc4 {[%clk 0:02:30.9]} 18... Nh5 {[%clk 0:01:40.3]} 19. Nxh5 {[%clk 0:02:18.5]}
19... gxh5 {[%clk 0:01:39.6]} 20. f6 {[%clk 0:02:18.8]} 20... Bxf6 {[%clk
0:01:23.3]} 21. Rxf6 {[%clk 0:02:19.1]} 21... gxf6 {[%clk 0:01:24.2]} 22. Bh6
{[%clk 0:02:17.5]} 22... Kh8 {[%clk 0:01:15.5]} 23. Bxf8 {[%clk 0:02:14.7]}
23... Rxf8 {[%clk 0:01:15]} 24. Qf3 {[%clk 0:02:14.1]} 24... Rg8 {[%clk
0:01:03.4]} 25. Qxf6+ {[%clk 0:02:00.3]} 25... Kh7 {[%clk 0:01:00]} 26. Rf1
{[%clk 0:01:59.7]} 26... Rg6 {[%clk 0:00:48.9]} 27. Qxf7+ {[%clk 0:01:48.8]}
27... Qxf7 {[%clk 0:00:49.8]} 28. Rxf7+ {[%clk 0:01:48.6]} 28... Kh6 {[%clk
0:00:43.3]} 29. Rf4 {[%clk 0:01:43.1]} 29... Rg3 {[%clk 0:00:36.7]} 30. Ne4
{[%clk 0:01:38.6]} 30... Ra3 {[%clk 0:00:31.3]} 31. Nxd6 {[%clk 0:01:36.9]}
31... Rxa2 {[%clk 0:00:30.4]} 32. Rf6+ {[%clk 0:01:33.9]} 32... Kg5 {[%clk
0:00:28.6]} 33. Ne4+ {[%clk 0:01:33.4]} 33... Kh4 {[%clk 0:00:28.9]} 34. Rf4#
{[%clk 0:01:33.1]} 1-0

[Event "Late-Titled-Tuesday-Blitz-March-19-2024"]
[Site "Chess.com"]
[Date "2024.03.19"]
[Round "11"]
[White "balack95"]
[Black "kriscacco"]
[Result "0-1"]
[WhiteElo "2428"]
[BlackElo "2152"]
[TimeControl "180+1"]
[EndTime "16:03:08 PDT"]
[Termination "kriscacco won by resignation"]

1. c4 {[%clk 0:03:00.1]} 1... g6 {[%clk 0:02:59.2]} 2. h4 {[%clk 0:02:57.5]}
2... h5 {[%clk 0:02:58.3]} 3. e4 {[%clk 0:02:57.1]} 3... Bg7 {[%clk 0:02:58.2]}
4. d4 {[%clk 0:02:53.6]} 4... c5 {[%clk 0:02:58.3]} 5. Ne2 {[%clk 0:02:50.9]}
5... Na6 {[%clk 0:02:55.2]} 6. d5 {[%clk 0:02:50.5]} 6... d6 {[%clk 0:02:54.5]}
7. Nbc3 {[%clk 0:02:50.3]} 7... Nc7 {[%clk 0:02:52.4]} 8. Bg5 {[%clk 0:02:50]}
8... Nf6 {[%clk 0:02:51.7]} 9. Qd2 {[%clk 0:02:49.1]} 9... a6 {[%clk 0:02:51]}
10. a4 {[%clk 0:02:48.8]} 10... b6 {[%clk 0:02:50]} 11. g3 {[%clk 0:02:47]}
11... Bd7 {[%clk 0:02:50.1]} 12. Bg2 {[%clk 0:02:46.7]} 12... b5 {[%clk
0:02:49.7]} 13. axb5 {[%clk 0:02:47.6]} 13... axb5 {[%clk 0:02:49.6]} 14. Rxa8
{[%clk 0:02:45]} 14... Qxa8 {[%clk 0:02:49.1]} 15. O-O {[%clk 0:02:41.3]} 15...
bxc4 {[%clk 0:02:45.7]} 16. e5 {[%clk 0:02:39.2]} 16... Ng4 {[%clk 0:02:40.8]}
17. e6 {[%clk 0:02:34.4]} 17... Bb5 {[%clk 0:02:34.3]} 18. exf7+ {[%clk
0:02:29.7]} 18... Kxf7 {[%clk 0:02:33.3]} 19. Qf4+ {[%clk 0:02:20.6]} 19... Bf6
{[%clk 0:02:31.5]} 20. Nxb5 {[%clk 0:02:08.2]} 20... Nxb5 {[%clk 0:02:29.5]} 21.
Bxf6 {[%clk 0:02:04.7]} 21... exf6 {[%clk 0:02:25.9]} 22. Qxc4 {[%clk
0:02:03.2]} 22... Ne5 {[%clk 0:02:19]} 23. Qxb5 {[%clk 0:02:02.4]} 23... Rb8
{[%clk 0:02:14.7]} 24. Nc3 {[%clk 0:01:44.1]} 24... Rxb5 {[%clk 0:02:12.8]} 25.
Nxb5 {[%clk 0:01:45]} 25... Qb8 {[%clk 0:02:12.9]} 26. Nc3 {[%clk 0:01:40.9]}
26... Qxb2 {[%clk 0:02:12.3]} 27. Ne4 {[%clk 0:01:41.8]} 27... Ke7 {[%clk
0:02:11.9]} 28. f4 {[%clk 0:01:36.1]} 28... Nd3 {[%clk 0:02:07]} 29. f5 {[%clk
0:01:34.3]} 29... gxf5 {[%clk 0:02:00]} 30. Rxf5 {[%clk 0:01:32.9]} 30... c4
{[%clk 0:01:51.3]} 31. Nxf6 {[%clk 0:01:21.1]} 31... c3 {[%clk 0:01:50]} 32.
Ng8+ {[%clk 0:01:17.8]} 32... Kd8 {[%clk 0:01:48.4]} 33. Rf8+ {[%clk 0:01:12.7]}
33... Kc7 {[%clk 0:01:48]} 34. Ne7 {[%clk 0:00:40.9]} 34... c2 {[%clk 0:01:45]}
35. Rc8+ {[%clk 0:00:35.5]} 35... Kb7 {[%clk 0:01:42.8]} 36. Rxc2 {[%clk
0:00:26.1]} 36... Qxc2 {[%clk 0:01:41.6]} 37. Nc6 {[%clk 0:00:27]} 37... Qf2+
{[%clk 0:01:40.1]} 38. Kh2 {[%clk 0:00:26.8]} 38... Ne1 {[%clk 0:01:39.3]} 0-1

[Event "Late-Titled-Tuesday-Blitz-March-19-2024"]
[Site "Chess.com"]
[Date "2024.03.19"]
[Round "11"]
[White "RichardLeyvaP"]
[Black "JoakimVonAnd"]
[Result "1-0"]
[WhiteElo "2564"]
[BlackElo "2690"]
[TimeControl "180+1"]
[EndTime "16:03:18 PDT"]
[Termination "RichardLeyvaP won on time"]

1. e4 {[%clk 0:02:59.4]} 1... c5 {[%clk 0:02:56.8]} 2. Nf3 {[%clk 0:02:58.7]}
2... d6 {[%clk 0:02:57.2]} 3. d4 {[%clk 0:02:59.1]} 3... cxd4 {[%clk 0:02:57.5]}
4. Nxd4 {[%clk 0:03:00]} 4... Nf6 {[%clk 0:02:56.7]} 5. Nc3 {[%clk 0:03:00.3]}
5... a6 {[%clk 0:02:57]} 6. f3 {[%clk 0:03:00.4]} 6... e5 {[%clk 0:02:56.9]} 7.
Nb3 {[%clk 0:03:00.7]} 7... Be6 {[%clk 0:02:57.1]} 8. Be3 {[%clk 0:03:01]} 8...
h5 {[%clk 0:02:56.9]} 9. Qd2 {[%clk 0:03:01.3]} 9... Nbd7 {[%clk 0:02:55.9]} 10.
O-O-O {[%clk 0:03:01.6]} 10... Rc8 {[%clk 0:02:55.7]} 11. Kb1 {[%clk 0:03:02]}
11... b5 {[%clk 0:02:53.4]} 12. g3 {[%clk 0:02:54.8]} 12... Be7 {[%clk
0:02:45.1]} 13. h3 {[%clk 0:02:55]} 13... Nb6 {[%clk 0:02:38.1]} 14. Qf2 {[%clk
0:02:49.8]} 14... Nc4 {[%clk 0:02:33.2]} 15. Bxc4 {[%clk 0:02:49.5]} 15... Rxc4
{[%clk 0:02:32.1]} 16. g4 {[%clk 0:02:25.1]} 16... Rxc3 {[%clk 0:01:45.6]} 17.
bxc3 {[%clk 0:02:23.5]} 17... Qc8 {[%clk 0:01:46.2]} 18. g5 {[%clk 0:02:11.9]}
18... Nd7 {[%clk 0:01:45.6]} 19. Kb2 {[%clk 0:02:06.3]} 19... g6 {[%clk
0:01:39.7]} 20. f4 {[%clk 0:02:02]} 20... exf4 {[%clk 0:01:36.6]} 21. Bxf4
{[%clk 0:02:02.2]} 21... Ne5 {[%clk 0:01:36.2]} 22. Nd4 {[%clk 0:02:01.7]} 22...
Nc4+ {[%clk 0:01:33.7]} 23. Ka1 {[%clk 0:02:01.3]} 23... O-O {[%clk 0:01:24.6]}
24. Nxe6 {[%clk 0:01:49.5]} 24... fxe6 {[%clk 0:01:25.5]} 25. Qg3 {[%clk
0:01:47.7]} 25... Qc5 {[%clk 0:01:16.2]} 26. Rhf1 {[%clk 0:01:39.7]} 26... Bd8
{[%clk 0:00:47.2]} 27. Bc1 {[%clk 0:01:35.6]} 27... Rxf1 {[%clk 0:00:43.8]} 28.
Rxf1 {[%clk 0:01:35]} 28... Ba5 {[%clk 0:00:44.5]} 29. Qf3 {[%clk 0:01:26.6]}
1-0

[Event "Late-Titled-Tuesday-Blitz-March-19-2024"]
[Site "Chess.com"]
[Date "2024.03.19"]
[Round "11"]
[White "vova-79"]
[Black "JaackCamel"]
[Result "0-1"]
[WhiteElo "2499"]
[BlackElo "2201"]
[TimeControl "180+1"]
[EndTime "16:03:25 PDT"]
[Termination "JaackCamel won by resignation"]

1. d4 {[%clk 0:03:00.9]} 1... d5 {[%clk 0:02:59.4]} 2. c4 {[%clk 0:03:00.4]}
2... e6 {[%clk 0:02:58.8]} 3. Nc3 {[%clk 0:03:00]} 3... c6 {[%clk 0:02:58.4]} 4.
e3 {[%clk 0:02:59.5]} 4... Nf6 {[%clk 0:02:57.2]} 5. Nf3 {[%clk 0:02:58.6]} 5...
Nbd7 {[%clk 0:02:56.6]} 6. Qc2 {[%clk 0:02:58.6]} 6... Bd6 {[%clk 0:02:55.7]} 7.
Bd2 {[%clk 0:02:58.1]} 7... O-O {[%clk 0:02:54.1]} 8. O-O-O {[%clk 0:02:58.8]}
8... dxc4 {[%clk 0:02:53.2]} 9. e4 {[%clk 0:02:58.6]} 9... e5 {[%clk 0:02:46.6]}
10. Bxc4 {[%clk 0:02:57.1]} 10... Qc7 {[%clk 0:02:28.5]} 11. g3 {[%clk
0:02:48.2]} 11... Nb6 {[%clk 0:02:11.3]} 12. Be2 {[%clk 0:02:15.3]} 12... Ng4
{[%clk 0:02:05.2]} 13. dxe5 {[%clk 0:02:12.7]} 13... Nxe5 {[%clk 0:02:04.3]} 14.
Nxe5 {[%clk 0:02:13.1]} 14... Bxe5 {[%clk 0:02:03.7]} 15. f4 {[%clk 0:02:13.3]}
15... Bd4 {[%clk 0:01:52.5]} 16. Kb1 {[%clk 0:02:12.3]} 16... Be6 {[%clk
0:01:39.5]} 17. Nb5 {[%clk 0:02:11.2]} 17... Qd8 {[%clk 0:01:16.3]} 18. Nxd4
{[%clk 0:01:53.8]} 18... Qxd4 {[%clk 0:01:14.1]} 19. f5 {[%clk 0:01:54.4]} 19...
Bc4 {[%clk 0:00:57.2]} 20. Bc3 {[%clk 0:01:42.5]} 20... Qf2 {[%clk 0:00:44.7]}
21. Bxc4 {[%clk 0:01:06.6]} 21... Qxc2+ {[%clk 0:00:43.6]} 22. Kxc2 {[%clk
0:01:07.5]} 22... Nxc4 {[%clk 0:00:43.3]} 23. Rd7 {[%clk 0:01:06.5]} 23... Rab8
{[%clk 0:00:32.6]} 24. Re1 {[%clk 0:01:02.1]} 24... f6 {[%clk 0:00:27.8]} 25. b3
{[%clk 0:00:58.8]} 25... Nb6 {[%clk 0:00:22]} 26. e5 {[%clk 0:00:58.5]} 26...
Nxd7 {[%clk 0:00:21.6]} 0-1

[Event "Late-Titled-Tuesday-Blitz-March-19-2024"]
[Site "Chess.com"]
[Date "2024.03.19"]
[Round "11"]
[White "gympod"]
[Black "Bryanl106"]
[Result "1-0"]
[WhiteElo "2447"]
[BlackElo "2662"]
[TimeControl "180+1"]
[EndTime "16:03:28 PDT"]
[Termination "gympod won by resignation"]

1. c4 {[%clk 0:03:00.9]} 1... Nf6 {[%clk 0:02:57.7]} 2. g3 {[%clk 0:03:01]} 2...
g6 {[%clk 0:02:56.8]} 3. Bg2 {[%clk 0:03:01.7]} 3... Bg7 {[%clk 0:02:57.7]} 4.
Nc3 {[%clk 0:03:02]} 4... O-O {[%clk 0:02:58.6]} 5. e4 {[%clk 0:03:02.5]} 5...
d6 {[%clk 0:02:58.2]} 6. Nge2 {[%clk 0:03:03.1]} 6... Nc6 {[%clk 0:02:58.6]} 7.
O-O {[%clk 0:03:03.6]} 7... a5 {[%clk 0:02:57.8]} 8. d3 {[%clk 0:03:03.6]} 8...
Nd7 {[%clk 0:02:52.7]} 9. Be3 {[%clk 0:03:02.6]} 9... e5 {[%clk 0:02:51.9]} 10.
Qd2 {[%clk 0:03:02.8]} 10... f5 {[%clk 0:02:51.4]} 11. exf5 {[%clk 0:03:00.3]}
11... gxf5 {[%clk 0:02:52.3]} 12. d4 {[%clk 0:02:59.4]} 12... Nb6 {[%clk
0:02:49.3]} 13. b3 {[%clk 0:02:55.1]} 13... a4 {[%clk 0:02:47.6]} 14. Rad1
{[%clk 0:02:11.8]} 14... axb3 {[%clk 0:02:43.8]} 15. axb3 {[%clk 0:02:11.8]}
15... Qe8 {[%clk 0:02:37.4]} 16. Nb5 {[%clk 0:02:01.6]} 16... Qe7 {[%clk
0:02:31.2]} 17. dxe5 {[%clk 0:01:47.8]} 17... dxe5 {[%clk 0:02:32.1]} 18. c5
{[%clk 0:01:41.9]} 18... Nd7 {[%clk 0:02:26.8]} 19. Nxc7 {[%clk 0:01:39.1]}
19... Ra3 {[%clk 0:02:24.7]} 20. Nd5 {[%clk 0:01:36.2]} 20... Qd8 {[%clk
0:02:21.4]} 21. b4 {[%clk 0:01:33.1]} 21... Kh8 {[%clk 0:01:37.2]} 22. b5 {[%clk
0:01:22.9]} 22... Ncb8 {[%clk 0:01:36.5]} 23. Nb6 {[%clk 0:01:08.3]} 23... Qc7
{[%clk 0:01:27.8]} 24. Nxc8 {[%clk 0:00:59.3]} 24... Rxc8 {[%clk 0:01:28.7]} 25.
Qb4 {[%clk 0:00:58.1]} 25... Ra8 {[%clk 0:01:14]} 26. b6 {[%clk 0:00:52]} 26...
Qd8 {[%clk 0:01:07.7]} 27. Bxb7 {[%clk 0:00:52.1]} 27... Na6 {[%clk 0:01:04.4]}
28. Qb5 {[%clk 0:00:46.7]} 28... Naxc5 {[%clk 0:01:02]} 29. Bxa8 {[%clk
0:00:44.3]} 29... Rxa8 {[%clk 0:01:02.9]} 30. Bxc5 {[%clk 0:00:42.6]} 30... f4
{[%clk 0:01:00.2]} 31. Rxd7 {[%clk 0:00:42.3]} 31... Qg5 {[%clk 0:01:00.9]} 32.
b7 {[%clk 0:00:40.6]} 32... Rb8 {[%clk 0:00:59.2]} 33. Bd6 {[%clk 0:00:40.8]}
33... f3 {[%clk 0:00:59.3]} 34. Bxb8 {[%clk 0:00:37.1]} 34... Qh5 {[%clk
0:00:56.6]} 35. Rd8+ {[%clk 0:00:37]} 35... Bf8 {[%clk 0:00:56.2]} 36. Rxf8+
{[%clk 0:00:37.5]} 36... Kg7 {[%clk 0:00:56.9]} 37. Qxe5+ {[%clk 0:00:36.8]}
37... Kxf8 {[%clk 0:00:54.8]} 38. Qxh5 {[%clk 0:00:36.6]} 1-0

[Event "Late-Titled-Tuesday-Blitz-March-19-2024"]
[Site "Chess.com"]
[Date "2024.03.19"]
[Round "11"]
[White "nabukatnezarr"]
[Black "stepanosinovsky"]
[Result "1-0"]
[WhiteElo "2592"]
[BlackElo "2369"]
[TimeControl "180+1"]
[EndTime "16:03:33 PDT"]
[Termination "nabukatnezarr won on time"]

1. e4 {[%clk 0:03:00.9]} 1... e5 {[%clk 0:02:59.7]} 2. Nc3 {[%clk 0:02:59.6]}
2... Nf6 {[%clk 0:02:59.2]} 3. Bc4 {[%clk 0:02:56.8]} 3... Nxe4 {[%clk 0:02:59]}
4. Qh5 {[%clk 0:02:50.2]} 4... Nd6 {[%clk 0:02:53.6]} 5. Qxe5+ {[%clk
0:02:49.1]} 5... Qe7 {[%clk 0:02:46.4]} 6. Qxe7+ {[%clk 0:02:46.5]} 6... Bxe7
{[%clk 0:02:47.3]} 7. Bb3 {[%clk 0:02:46.8]} 7... c6 {[%clk 0:02:45.7]} 8. d4
{[%clk 0:02:44.4]} 8... Nf5 {[%clk 0:02:42.3]} 9. d5 {[%clk 0:02:43.6]} 9... Nd4
{[%clk 0:02:37]} 10. Be3 {[%clk 0:02:40.8]} 10... Nxb3 {[%clk 0:02:35.7]} 11.
axb3 {[%clk 0:02:41.7]} 11... c5 {[%clk 0:02:26]} 12. d6 {[%clk 0:02:18.3]}
12... Bxd6 {[%clk 0:02:23.3]} 13. Nb5 {[%clk 0:02:16.2]} 13... Ke7 {[%clk
0:00:47.7]} 14. O-O-O {[%clk 0:02:12.3]} 14... Be5 {[%clk 0:00:40.4]} 15. Bxc5+
{[%clk 0:02:09]} 15... d6 {[%clk 0:00:39.1]} 16. Nxd6 {[%clk 0:02:08.1]} 16...
Na6 {[%clk 0:00:12.7]} 17. Nxc8+ {[%clk 0:02:05.5]} 17... Ke6 {[%clk 0:00:07.7]}
18. Bd4 {[%clk 0:01:36.2]} 18... Bxd4 {[%clk 0:00:05.6]} 19. Rxd4 {[%clk
0:01:35.2]} 19... Raxc8 {[%clk 0:00:05.8]} 20. Nf3 {[%clk 0:01:35.6]} 20... Kf6
{[%clk 0:00:05.2]} 21. Rf4+ {[%clk 0:01:34.6]} 21... Kg6 {[%clk 0:00:05.2]} 22.
Ne5+ {[%clk 0:01:32.5]} 22... Kg5 {[%clk 0:00:04.4]} 23. Rxf7 {[%clk 0:01:01.6]}
1-0

[Event "Late-Titled-Tuesday-Blitz-March-19-2024"]
[Site "Chess.com"]
[Date "2024.03.19"]
[Round "11"]
[White "ChessSwole"]
[Black "Der_Balak_3Halak"]
[Result "1-0"]
[WhiteElo "2657"]
[BlackElo "2412"]
[TimeControl "180+1"]
[EndTime "16:03:36 PDT"]
[Termination "ChessSwole won by checkmate"]

1. e4 {[%clk 0:03:00.9]} 1... c5 {[%clk 0:02:59]} 2. Nf3 {[%clk 0:03:01.8]} 2...
Nc6 {[%clk 0:02:59]} 3. d4 {[%clk 0:03:02.4]} 3... cxd4 {[%clk 0:02:59.9]} 4.
Nxd4 {[%clk 0:03:03.3]} 4... Nf6 {[%clk 0:02:59.3]} 5. Nc3 {[%clk 0:03:03.6]}
5... g6 {[%clk 0:02:59.2]} 6. Nxc6 {[%clk 0:03:00.3]} 6... bxc6 {[%clk
0:03:00.1]} 7. e5 {[%clk 0:03:01]} 7... Ng8 {[%clk 0:02:59.4]} 8. Bc4 {[%clk
0:03:00.4]} 8... Bg7 {[%clk 0:02:57.6]} 9. Qf3 {[%clk 0:03:00.2]} 9... e6 {[%clk
0:02:53.3]} 10. Bf4 {[%clk 0:02:51.1]} 10... Ne7 {[%clk 0:02:51.5]} 11. O-O-O
{[%clk 0:02:45.6]} 11... Rb8 {[%clk 0:02:46]} 12. Ne4 {[%clk 0:02:42.8]} 12...
O-O {[%clk 0:02:45.3]} 13. h4 {[%clk 0:02:31.3]} 13... Nd5 {[%clk 0:02:42.8]}
14. h5 {[%clk 0:02:22.1]} 14... Rb4 {[%clk 0:02:24]} 15. h6 {[%clk 0:01:57.7]}
15... Bh8 {[%clk 0:02:19.8]} 16. Bb3 {[%clk 0:01:39.5]} 16... Qc7 {[%clk
0:02:15.8]} 17. Bg3 {[%clk 0:01:13.5]} 17... Bxe5 {[%clk 0:01:32.1]} 18. Bxd5
{[%clk 0:00:51.1]} 18... cxd5 {[%clk 0:01:26.7]} 19. Nf6+ {[%clk 0:00:50]} 19...
Kh8 {[%clk 0:01:26.9]} 20. c3 {[%clk 0:00:19.9]} 20... Rc4 {[%clk 0:00:52.9]}
21. Ng4 {[%clk 0:00:17.1]} 21... Bxg3 {[%clk 0:00:44.3]} 22. Qf6+ {[%clk
0:00:16.8]} 22... Kg8 {[%clk 0:00:41.3]} 23. Qg7# {[%clk 0:00:17.7]} 1-0

[Event "Late-Titled-Tuesday-Blitz-March-19-2024"]
[Site "Chess.com"]
[Date "2024.03.19"]
[Round "11"]
[White "ContrVersia"]
[Black "DamianoLew95"]
[Result "1-0"]
[WhiteElo "2911"]
[BlackElo "2732"]
[TimeControl "180+1"]
[EndTime "16:03:41 PDT"]
[Termination "ContrVersia won by resignation"]

1. Nf3 {[%clk 0:02:57.8]} 1... Nf6 {[%clk 0:02:59.7]} 2. c4 {[%clk 0:02:57.8]}
2... e6 {[%clk 0:02:58.7]} 3. g3 {[%clk 0:02:58.2]} 3... a6 {[%clk 0:02:56.8]}
4. Bg2 {[%clk 0:02:58.3]} 4... b5 {[%clk 0:02:57.1]} 5. b3 {[%clk 0:02:58.8]}
5... Bb7 {[%clk 0:02:56.2]} 6. Nc3 {[%clk 0:02:59.2]} 6... b4 {[%clk 0:02:55.7]}
7. Na4 {[%clk 0:02:59.5]} 7... Be7 {[%clk 0:02:52.1]} 8. O-O {[%clk 0:02:59.1]}
8... O-O {[%clk 0:02:52.7]} 9. d4 {[%clk 0:02:59.5]} 9... a5 {[%clk 0:02:53.1]}
10. Bb2 {[%clk 0:02:58.3]} 10... d5 {[%clk 0:02:47.8]} 11. cxd5 {[%clk
0:02:57.3]} 11... Bxd5 {[%clk 0:02:43.8]} 12. Rc1 {[%clk 0:02:56.9]} 12... Nbd7
{[%clk 0:02:42.3]} 13. Qc2 {[%clk 0:02:55.9]} 13... Be4 {[%clk 0:02:41]} 14.
Qxc7 {[%clk 0:02:55]} 14... Qe8 {[%clk 0:02:25.1]} 15. Nd2 {[%clk 0:02:54.4]}
15... Nd5 {[%clk 0:02:19.1]} 16. Qc6 {[%clk 0:02:53]} 16... Bxg2 {[%clk
0:02:06.1]} 17. Kxg2 {[%clk 0:02:53.9]} 17... Bg5 {[%clk 0:02:04.1]} 18. Rfd1
{[%clk 0:02:45]} 18... Qe7 {[%clk 0:01:54.3]} 19. e4 {[%clk 0:02:41.8]} 19...
N5f6 {[%clk 0:01:44.4]} 20. f4 {[%clk 0:02:34.7]} 20... Bh6 {[%clk 0:01:44.4]}
21. Nf3 {[%clk 0:02:28.9]} 21... Nh5 {[%clk 0:01:32.6]} 22. Nc5 {[%clk
0:02:02.9]} 22... Ndf6 {[%clk 0:01:27.6]} 23. Nd3 {[%clk 0:01:57.3]} 23... g6
{[%clk 0:01:20.8]} 24. Re1 {[%clk 0:01:55]} 24... Rfd8 {[%clk 0:01:12]} 25. d5
{[%clk 0:01:53.2]} 25... Rac8 {[%clk 0:01:07.5]} 26. Qxc8 {[%clk 0:01:52.1]}
26... Rxc8 {[%clk 0:01:08.4]} 27. Rxc8+ {[%clk 0:01:52]} 27... Bf8 {[%clk
0:01:09]} 28. dxe6 {[%clk 0:01:39.4]} 28... Qxe6 {[%clk 0:01:09.9]} 29. Rc4
{[%clk 0:01:38.7]} 29... Qg4 {[%clk 0:00:54.9]} 30. Bxf6 {[%clk 0:01:24.4]}
30... Nxf6 {[%clk 0:00:53.4]} 31. h3 {[%clk 0:01:24.6]} 31... Qd7 {[%clk
0:00:51.1]} 32. Nfe5 {[%clk 0:01:22.6]} 32... Qd6 {[%clk 0:00:47.6]} 33. Rc6
{[%clk 0:01:18.4]} 33... Qd8 {[%clk 0:00:45]} 34. Nf2 {[%clk 0:01:11.8]} 34...
Be7 {[%clk 0:00:38.9]} 35. Rec1 {[%clk 0:01:07.1]} 35... Qd4 {[%clk 0:00:32.8]}
36. Nf3 {[%clk 0:01:04.9]} 36... Qd7 {[%clk 0:00:26.6]} 37. Rc7 {[%clk
0:01:03.4]} 37... Qe6 {[%clk 0:00:26.9]} 38. R1c6 {[%clk 0:01:02.5]} 1-0

[Event "Late-Titled-Tuesday-Blitz-March-19-2024"]
[Site "Chess.com"]
[Date "2024.03.19"]
[Round "11"]
[White "WilsonPalencia21"]
[Black "Kopytkin"]
[Result "1-0"]
[WhiteElo "2615"]
[BlackElo "2408"]
[TimeControl "180+1"]
[EndTime "16:03:45 PDT"]
[Termination "WilsonPalencia21 won by resignation"]

1. d4 {[%clk 0:02:53.7]} 1... Nf6 {[%clk 0:02:57.7]} 2. c4 {[%clk 0:02:50.8]}
2... d6 {[%clk 0:02:58]} 3. Nf3 {[%clk 0:02:50.3]} 3... Nc6 {[%clk 0:02:57.8]}
4. Nc3 {[%clk 0:02:48.8]} 4... e5 {[%clk 0:02:56.5]} 5. d5 {[%clk 0:02:48.6]}
5... Ne7 {[%clk 0:02:56.7]} 6. e4 {[%clk 0:02:47.9]} 6... c5 {[%clk 0:02:47.7]}
7. g3 {[%clk 0:02:44.4]} 7... g6 {[%clk 0:02:43]} 8. Bg2 {[%clk 0:02:44.5]} 8...
Bg7 {[%clk 0:02:43.5]} 9. O-O {[%clk 0:02:44.8]} 9... O-O {[%clk 0:02:44.1]} 10.
Ne1 {[%clk 0:02:45.3]} 10... Ne8 {[%clk 0:02:35.4]} 11. Nd3 {[%clk 0:02:41.2]}
11... f5 {[%clk 0:02:35.5]} 12. f4 {[%clk 0:02:41.4]} 12... a6 {[%clk
0:02:29.6]} 13. fxe5 {[%clk 0:02:39.5]} 13... dxe5 {[%clk 0:02:29.4]} 14. Nxc5
{[%clk 0:02:33]} 14... f4 {[%clk 0:01:53.4]} 15. Nd3 {[%clk 0:02:25.8]} 15... g5
{[%clk 0:01:50.7]} 16. Kh1 {[%clk 0:02:13.5]} 16... Ng6 {[%clk 0:01:47.8]} 17.
g4 {[%clk 0:01:54.9]} 17... b6 {[%clk 0:01:16]} 18. Bf3 {[%clk 0:01:51.2]} 18...
Nd6 {[%clk 0:01:14.1]} 19. b3 {[%clk 0:01:48.1]} 19... Rf7 {[%clk 0:01:09]} 20.
Bd2 {[%clk 0:01:46.4]} 20... Nh4 {[%clk 0:01:02.1]} 21. Be1 {[%clk 0:01:45.9]}
21... Ng6 {[%clk 0:00:54.7]} 22. Bf2 {[%clk 0:01:45.2]} 22... Bf8 {[%clk
0:00:52]} 23. Rc1 {[%clk 0:01:28.2]} 23... Qe8 {[%clk 0:00:46.4]} 24. Bxb6
{[%clk 0:01:22.2]} 24... Nh4 {[%clk 0:00:45.9]} 25. Bf2 {[%clk 0:01:21.9]} 25...
Nxf3 {[%clk 0:00:43.1]} 26. Qxf3 {[%clk 0:01:21.5]} 26... Rg7 {[%clk 0:00:42.3]}
27. h3 {[%clk 0:01:10.5]} 27... h5 {[%clk 0:00:38.3]} 28. Rg1 {[%clk 0:01:09.3]}
28... hxg4 {[%clk 0:00:37.6]} 29. hxg4 {[%clk 0:01:09.6]} 29... Qg6 {[%clk
0:00:22.9]} 30. Kg2 {[%clk 0:01:04.9]} 30... Nxe4 {[%clk 0:00:17.3]} 31. Qxe4
{[%clk 0:00:58.4]} 31... Qxe4+ {[%clk 0:00:12.3]} 32. Nxe4 {[%clk 0:00:58.2]}
32... Bxg4 {[%clk 0:00:13.2]} 33. Nf6+ {[%clk 0:00:58.5]} 1-0